bitfinex/quotes_SOLUSD_20240808
["timestamp","ask_amount","ask_price","bid_price","bid_amount"]
[1723135559946,6.2504,159.99,159.85,6.5774]
[1723135560150,44.0,160.0,159.86,35.2519]
[1723135560365,1.56308304,159.99,159.87,6.5774]
[1723135560746,6.44484679,160.03,159.88,20.0]
[1723135561647,6.2501,160.0,159.89,16.5951]
[1723135561853,1.5630916,159.99,159.89,16.5951]
[1723135562152,6.44484679,160.03,159.91,16.1276]
[1723135562364,6.2477,160.06,159.92,6.3192]
[1723135562552,6.2481,160.05,159.92,26.3192]
[1723135562749,1.56254247,160.04,159.92,26.3192]
[1723135563761,9.79478203,160.07,159.93,21.6603]
[1723135563968,9.79478203,160.07,159.94,6.0845]
[1723135564155,9.79478203,160.07,159.94,26.0845]
[1723135565180,6.43675386,160.12,159.98,6.0845]
[1723135565365,45.56223119,160.11,159.98,1.23997852]
[1723135565553,6.2492,160.03,159.98,0.51483188]
[1723135565756,6.2491,160.03,159.97,15.5758]
[1723135565985,1.56287065,160.02,159.85,15.8236]
[1723135566164,1.56306333,160.01,159.85,15.8236]
[1723135566365,6.2513,159.97,159.85,15.8236]
[1723135566582,46.56333702,159.96,159.85,15.8236]
[1723135566887,52.81513702,159.96,159.85,15.8236]
[1723135567094,46.56333702,159.96,159.85,15.8236]
[1723135567254,45.0,159.95,159.85,15.8236]
[1723135567458,1.56341263,159.94,159.85,15.8236]
[1723135567658,1.56328552,159.96,159.85,15.8236]
[1723135567860,1.5632819,159.95,159.85,15.8236]
[1723135568288,1.56335479,159.96,159.85,15.8236]
[1723135568487,1.56329435,159.95,159.85,15.8236]
[1723135568662,1.56329435,159.95,159.86,6.4434]
[1723135568999,1.56365658,159.95,159.86,6.4434]
[1723135569459,6.2527,159.93,159.86,6.4434]
[1723135569865,45.0,159.92,159.86,6.4434]
[1723135570985,1.56380413,159.95,159.86,6.4434]
[1723135571290,6.252,159.95,159.86,6.4434]
[1723135571472,6.2523,159.94,159.86,6.4434]
[1723135571672,62.78,159.97,159.86,6.4434]
[1723135571981,6.2531,159.92,159.86,6.4434]
[1723135572210,7.81745291,159.92,159.86,6.4434]
[1723135572498,45.0,159.91,159.86,6.4434]
[1723135572789,44.0,159.97,159.86,6.4434]
[1723135572978,26.2518,159.96,159.86,6.4434]
[1723135573178,27.81546849,159.96,159.86,6.4434]
[1723135573371,44.0,160.01,159.87,1.25081603]
[1723135573896,6.25,160.0,159.87,1.25081603]
[1723135574208,2.58869471,160.03,159.87,21.25081603]
[1723135574497,6.2487,160.04,159.88,21.8815]
[1723135574678,50.2481,160.05,159.89,20.0]
[1723135574871,7.8103866,160.06,159.89,20.0]
[1723135575194,6.2472,160.07,159.9,23.32745085]
[1723135575498,6.2472,160.07,159.91,21.24996421]
[1723135575697,9.79402913,160.12,159.94,6.4232]
[1723135575993,9.79402913,160.12,159.95,21.24971306]
[1723135576199,9.79402913,160.12,159.97,21.8999]
[1723135576385,6.2441,160.15,159.98,21.24949136]
[1723135576896,6.2446,160.14,159.98,25.85713104]
[1723135577101,9.7930059,160.15,159.99,1.24944508]
[1723135577400,9.7930059,160.15,159.99,5.85713104]
[1723135577602,9.7930059,160.15,160.0,20.0]
[1723135577971,1.56171561,160.14,160.0,20.0]
[1723135578175,6.2465,160.09,160.01,5.85713104]
[1723135578389,1.56219084,160.08,159.97,21.8999]
[1723135578594,1.56219328,160.14,159.97,21.8999]
[1723135578996,46.56219328,160.14,159.97,21.8999]
[1723135579297,44.0,160.12,159.97,21.8999]
[1723135579478,6.2469,160.08,159.97,21.8999]
[1723135579979,46.56232475,160.07,159.97,21.8999]
[1723135580302,6.2478,160.06,159.97,21.8999]
[1723135580475,46.56232475,160.07,159.97,21.8999]
[1723135580476,6.2489,160.03,159.97,21.8999]
[1723135580803,45.0,160.07,159.97,21.8999]
[1723135580804,46.56284117,160.02,159.97,21.8999]
[1723135581005,1.56284117,160.02,159.97,21.8999]
[1723135581295,45.0,160.02,159.97,21.8999]
[1723135582089,1.56280659,160.01,159.97,21.8999]
[1723135582575,6.2505,159.99,159.93,6.3806]
[1723135582782,46.56326072,159.98,159.93,6.3806]
[1723135583010,46.56326072,159.98,159.92,16.3118]
[1723135583011,6.2512,159.97,159.92,16.3118]
[1723135583300,45.0,159.96,159.88,6.5406]
[1723135583599,51.2516,159.96,159.88,6.5406]
[1723135583899,45.0,159.96,159.88,6.5406]
[1723135584402,1.56343056,159.95,159.88,6.5406]
[1723135585805,6.2507,159.99,159.88,6.5406]
[1723135585982,7.81291156,160.01,159.88,6.5406]
[1723135586179,26.2501,160.0,159.88,6.5406]
[1723135586381,6.2501,160.0,159.88,6.5406]
[1723135586578,1.56322798,160.01,159.88,6.5406]
[1723135586895,6.43840108,160.01,159.88,6.5406]
[1723135587410,14.25126386,160.01,159.88,6.5406]
[1723135587906,6.43840108,160.01,159.88,7.79114066]
[1723135588217,6.43840108,160.01,159.88,6.5406]
[1723135588502,44.0,160.08,159.89,1.25042054]
[1723135588797,6.43692415,160.04,159.9,1.25028983]
[1723135589001,6.2493,160.02,159.91,1.25029192]
[1723135589202,6.2488,160.03,159.89,1.25033476]
[1723135589506,7.99968968,160.04,159.88,6.5406]
[1723135589808,6.2496,160.01,159.88,6.5406]
[1723135590298,6.2492,160.02,159.88,6.5406]
[1723135590483,45.0,160.01,159.88,6.5406]
[1723135590905,45.0,160.01,159.89,1.25034321]
[1723135591091,6.43692415,160.04,159.89,1.25034321]
[1723135591302,6.43692415,160.04,159.89,21.25034321]
[1723135591595,44.0,160.08,159.91,6.2576]
[1723135591596,1.56265606,160.07,159.91,6.2576]
[1723135591804,6.2477,160.06,159.92,20.0]
[1723135592007,6.2492,160.02,159.91,6.2576]
[1723135592298,6.43028081,160.07,159.91,6.2576]
[1723135592299,1.56283027,160.04,159.91,6.2576]
[1723135592504,1.56283027,160.01,159.91,6.2576]
[1723135592798,6.2504,159.99,159.91,6.2576]
[1723135593005,45.0,159.98,159.91,6.2576]
[1723135595477,7.81464417,159.97,159.91,6.2576]
[1723135595681,45.0,159.96,159.91,6.2576]
[1723135595905,45.0,159.98,159.91,6.2576]
[1723135596075,45.0,159.98,159.91,7.50807992]
[1723135596410,45.0,159.98,159.91,6.2576]
[1723135597287,17.18363215,160.05,159.91,6.2576]
[1723135597488,6.2481,160.05,159.92,1.25026284]
[1723135597802,6.2481,160.05,159.93,1.25015047]
[1723135598208,6.2477,160.06,159.93,1.25015047]
[1723135598511,6.2483,160.05,159.92,20.0]
[1723135598685,6.43028081,160.07,159.91,6.2576]
[1723135598686,1.56262409,160.04,159.91,6.2576]
[1723135599286,17.18462409,160.04,159.91,6.2576]
[1723135599787,6.2508,159.98,159.91,6.2576]
[1723135599993,46.56330421,159.97,159.91,6.2576]
[1723135600187,52.81480421,159.97,159.91,6.2576]
[1723135600502,45.0,159.97,159.91,6.2576]
[1723135600716,51.2508,159.98,159.91,6.2576]
[1723135600885,45.0,159.98,159.91,6.2576]
[1723135601081,45.0,159.99,159.87,6.4361]
[1723135601306,51.2504,159.99,159.87,7.68686318]
[1723135602102,51.2504,159.99,159.87,6.4361]
[1723135602407,45.0,159.99,159.87,6.4361]
[1723135602607,6.2514,159.97,159.87,6.4361]
[1723135602812,45.0,159.96,159.87,6.4361]
[1723135603312,45.0,159.96,159.88,1.25072997]
[1723135603515,45.0,159.96,159.87,7.68680186]
[1723135604218,45.0,159.96,159.87,6.4361]
[1723135606119,45.0,159.96,159.87,7.68686054]
[1723135606810,45.0,159.96,159.87,6.4361]
[1723135607412,51.2518,159.96,159.87,6.4361]
[1723135607613,45.0,159.96,159.87,7.68685921]
[1723135607782,45.0,159.97,159.87,7.68685921]
[1723135608190,1.56346015,159.96,159.87,6.4361]
[1723135608407,51.42780453,159.97,159.87,6.4361]
[1723135608799,6.252,159.95,159.87,6.4361]
[1723135609002,51.2523,159.94,159.87,6.4361]
[1723135609197,7.81576348,159.95,159.87,6.4361]
[1723135609521,45.0,159.93,159.87,6.4361]
[1723135610706,46.5637855,159.94,159.87,6.4361]
[1723135610906,45.0,159.94,159.87,6.4361]
[1723135611490,45.0,159.95,159.87,6.4361]
[1723135611897,51.252,159.95,159.87,6.4361]
[1723135612112,46.56371624,159.95,159.87,6.4361]
[1723135612311,45.0,159.94,159.87,6.4361]
[1723135612622,45.0,159.96,159.87,6.4361]
[1723135612797,51.2512,159.97,159.87,6.4361]
[1723135613113,1.56361554,159.96,159.87,6.4361]
[1723135613301,45.0,159.97,159.87,6.4361]
[1723135613497,1.56365488,159.96,159.87,6.4361]
[1723135613700,46.56365488,159.96,159.87,6.4361]
[1723135614739,52.81525488,159.96,159.87,6.4361]
[1723135615014,46.56365488,159.96,159.87,6.4361]
[1723135615212,45.0,159.96,159.87,6.4361]
[1723135615800,45.0,159.96,159.88,1.25069153]
[1723135616002,46.50265234,160.02,159.88,1.25069153]
[1723135616205,6.2496,160.01,159.88,1.25069153]
[1723135616407,46.50265234,160.02,159.87,6.4361]
[1723135616599,6.2504,159.99,159.87,6.4361]
[1723135616923,6.25,160.0,159.87,6.4361]
[1723135617298,51.2504,159.99,159.87,6.4361]
[1723135617493,45.0,159.99,159.87,6.4361]
[1723135618993,6.42007655,160.02,159.89,6.0059]
[1723135619199,257.0,160.03,159.91,21.7694]
[1723135619392,257.0,160.03,159.93,21.7694]
[1723135619616,46.47638663,160.08,159.94,20.0]
[1723135619914,6.2488,160.03,159.93,21.7694]
[1723135620220,1.5628552,160.02,159.93,21.7694]
[1723135620406,1.56283407,160.06,159.93,21.7694]
[1723135620721,44.0,160.05,159.93,21.7694]
[1723135620923,6.43331597,160.07,159.94,1.25023458]
[1723135621419,44.0,160.12,159.94,1.25023458]
[1723135621420,1.56245631,160.11,159.94,20.0]
[1723135621596,6.2476,160.06,159.94,20.0]
[1723135621795,1.56258644,160.05,159.94,20.0]
[1723135621993,1.56254919,160.04,159.94,20.0]
[1723135622191,1.56254919,160.04,159.93,21.7694]
[1723135622419,1.56267011,160.07,159.93,21.7694]
[1723135622622,6.2492,160.02,159.93,21.7694]
[1723135622929,46.56301569,160.01,159.93,21.7694]
[1723135623131,1.56301569,160.01,159.93,21.7694]
[1723135623724,6.2503,160.0,159.93,21.7694]
[1723135623929,46.56321476,159.99,159.93,21.7694]
[1723135624128,1.56321476,159.98,159.89,22.7044]
[1723135624303,6.2513,159.97,159.89,22.7044]
[1723135624630,46.56356471,159.96,159.89,22.7044]
[1723135624834,45.0,159.95,159.89,22.7044]
[1723135625006,6.2519,159.96,159.89,22.7044]
[1723135625321,45.0,159.95,159.89,22.7044]
[1723135626000,45.0,159.96,159.89,22.7044]
[1723135626707,1.56367385,159.95,159.89,22.7044]
[1723135626927,45.0,159.96,159.89,22.7044]
[1723135627228,6.2526,159.94,159.85,21.9602]
[1723135627406,46.56392199,159.93,159.85,21.9602]
[1723135627618,1.56392,159.92,159.85,21.9602]
[1723135627811,45.0,159.93,159.85,21.9602]
[1723135628601,6.2531,159.92,159.85,21.9602]
[1723135628930,45.0,159.91,159.85,21.9602]
[1723135629826,6.2512,159.97,159.85,21.9602]
[1723135630014,6.2508,159.98,159.85,21.9602]
[1723135630323,44.0,160.0,159.86,1.25079974]
[1723135630714,44.0,160.0,159.86,20.0]
[1723135630915,6.2516,159.96,159.86,20.0]
[1723135631115,1.56366008,159.95,159.85,21.9602]
[1723135631317,6.2524,159.94,159.85,21.9602]
[1723135631701,45.0,159.93,159.85,21.9602]
[1723135632920,1.5640545,159.92,159.85,21.9602]
[1723135633128,45.0,159.93,159.85,21.9602]
[1723135633532,6.2539,159.9,159.85,21.9602]
[1723135633742,45.0,159.89,159.85,21.9602]
[1723135634212,45.0,159.9,159.85,21.9602]
[1723135635311,2.47747767,159.96,159.85,21.9602]
[1723135635510,6.46102904,159.97,159.85,21.9602]
[1723135635728,1.56372813,159.96,159.85,21.9602]
[1723135635930,44.0,159.96,159.85,21.9602]
[1723135636115,59.6297,159.96,159.85,21.9602]
[1723135636308,1.56405343,159.95,159.85,21.9602]
[1723135636708,59.6297,159.96,159.85,21.9602]
[1723135636920,18.78,159.94,159.85,21.9602]
[1723135637123,54.80169739,159.93,159.85,21.9602]
[1723135637603,1.56411484,159.92,159.85,21.9602]
[1723135638225,7.81731484,159.92,159.85,21.9602]
[1723135638726,16.05439739,159.93,159.85,21.9602]
[1723135639324,46.56404611,159.92,159.85,21.9602]
[1723135639613,1.56404611,159.92,159.85,21.9602]
[1723135639808,9.80169739,159.93,159.85,21.9602]
[1723135640120,1.56358033,159.96,159.85,21.9602]
[1723135640318,17.61560301,159.95,159.85,21.9602]
[1723135640527,11.36360301,159.95,159.85,21.9602]
[1723135640730,9.79976537,159.95,159.85,21.9602]
[1723135641116,1.56363675,159.99,159.85,21.9602]
[1723135641416,9.7992562,159.97,159.85,21.9602]
[1723135641941,9.7992562,159.97,159.87,6.6499]
[1723135642108,9.7992562,159.97,159.88,20.0]
[1723135642309,1.56321521,159.96,159.89,16.3842]
[1723135642512,9.7992562,159.97,159.89,16.3842]
[1723135642741,1.5632612,160.0,159.89,16.3842]
[1723135642917,9.7980258,159.99,159.89,16.3842]
[1723135643234,11.36121316,159.99,159.89,16.3842]
[1723135643450,1.56335436,159.98,159.89,16.3842]
[1723135643638,9.7980258,159.99,159.89,16.3842]
[1723135643825,1.56313783,160.0,159.89,16.3842]
[1723135644023,9.79773556,160.01,159.9,6.1238]
[1723135644220,11.36074205,160.01,159.91,20.0]
[1723135644541,11.36074205,160.01,159.9,6.1238]
[1723135645211,9.79773556,160.01,159.9,6.1238]
[1723135645645,45.0,160.0,159.9,6.1238]
[1723135645944,1.56321837,159.99,159.9,6.1238]
[1723135646548,9.79773556,160.01,159.9,6.1238]
[1723135646710,9.79773556,160.01,159.91,21.25064316]
[1723135647035,11.36079752,160.01,159.91,20.0]
[1723135647230,9.79773556,160.01,159.91,20.0]
[1723135648246,45.0,160.0,159.91,20.0]
[1723135648538,1.56324485,159.99,159.9,6.1238]
[1723135648734,1.56349487,159.98,159.9,6.1238]
[1723135649322,1.56349487,159.98,159.89,16.3842]
[1723135649535,6.2516,159.96,159.89,16.3842]
[1723135649723,1.56363607,159.95,159.89,16.3842]
[1723135650326,1.56360919,159.97,159.89,16.3842]
[1723135650529,7.81470919,159.97,159.89,16.3842]
[1723135650711,45.0,159.96,159.89,16.3842]
[1723135650909,1.56364013,159.95,159.89,16.3842]
[1723135651140,7.81554013,159.95,159.89,16.3842]
[1723135651309,45.0,159.94,159.89,16.3842]
[1723135651714,45.0,159.94,159.83,34.21]
[1723135652348,80.77385778,159.94,159.81,34.21]
[1723135652519,45.0,159.94,159.83,34.21]
[1723135652717,45.0,159.94,159.85,34.21]
[1723135652917,45.0,159.94,159.84,20.0]
[1723135653239,34.21,159.96,159.84,20.0]
[1723135653839,34.21,159.96,159.84,21.25100396]
[1723135654041,45.0,159.95,159.84,20.0]
[1723135654841,45.0,159.95,159.85,21.8351]
[1723135655140,45.0,159.95,159.86,20.0]
[1723135655741,291.21,160.0,159.87,34.21]
[1723135655946,291.21,160.0,159.9,16.0616]
[1723135655947,257.0,160.0,159.9,16.0616]
[1723135656158,9.79773556,160.01,159.92,6.0096]
[1723135656323,9.79773556,160.01,159.93,1.25035026]
[1723135656515,9.79773556,160.01,159.92,6.0096]
[1723135656738,9.79773556,160.01,159.93,1.25035179]
[1723135656926,40.4577,160.06,159.93,35.46035179]
[1723135657257,9.79479407,160.03,159.94,21.25024913]
[1723135657550,257.0,160.07,159.95,51.65496892]
[1723135657720,84.5682,160.12,159.95,17.44496892]
[1723135657923,9.79379512,160.05,159.95,16.1949]
[1723135658232,6.2473,160.07,159.95,16.1949]
[1723135658431,9.79392984,160.04,159.95,16.1949]
[1723135659352,45.0,160.03,159.95,16.1949]
[1723135659662,1.56292046,160.02,159.95,16.1949]
[1723135659950,1.56297204,160.01,159.92,6.0096]
[1723135660152,52.81257204,160.01,159.92,6.0096]
[1723135660334,45.0,160.0,159.92,6.0096]
[1723135660534,1.56317212,159.99,159.92,6.0096]
[1723135660737,1.56317131,159.98,159.92,6.0096]
[1723135661845,72.84145957,160.04,159.92,6.0096]
[1723135661846,6.2488,160.03,159.92,6.0096]
[1723135662154,1.56309017,160.02,159.92,6.0096]
[1723135663038,6.2499,160.01,159.92,6.0096]
[1723135663220,45.0,160.0,159.92,6.0096]
[1723135663421,46.56327239,160.0,159.92,6.0096]
[1723135663829,52.81327239,160.0,159.92,6.0096]
[1723135664049,46.56327239,160.0,159.92,6.0096]
[1723135664229,52.81337239,160.0,159.92,6.0096]
[1723135664963,30.0,159.94,159.92,6.0096]
[1723135665133,11.35680997,160.04,159.93,30.6029]
[1723135665332,9.79392984,160.04,159.93,30.6029]
[1723135665831,9.79392984,160.04,159.93,10.6029]
[1723135666059,6.2495,160.02,159.92,6.0096]
[1723135666232,6.2503,160.0,159.92,6.0096]
[1723135666441,1.56335131,159.99,159.92,6.0096]
[1723135667057,6.2496,160.01,159.92,6.0096]
[1723135667255,45.0,160.0,159.92,6.0096]
[1723135667449,51.25,160.0,159.92,6.0096]
[1723135667651,1.56340295,159.99,159.89,13.9361]
[1723135667846,6.2506,159.99,159.89,13.9361]
[1723135668155,46.56338085,159.98,159.89,13.9361]
[1723135668351,45.0,159.98,159.89,13.9361]
[1723135668545,45.0,159.99,159.89,13.9361]
[1723135669057,58.45866285,159.98,159.84,6.4893]
[1723135669378,45.0,159.97,159.84,6.4893]
[1723135669580,6.252,159.95,159.84,6.4893]
[1723135669862,45.0,159.94,159.84,6.4893]
[1723135670032,1.56384252,159.93,159.84,6.4893]
[1723135670359,1.56367472,159.92,159.84,6.4893]
[1723135670546,51.2526,159.94,159.84,6.4893]
[1723135670745,7.81642254,159.93,159.84,6.4893]
[1723135670950,46.56387367,159.92,159.84,6.4893]
[1723135671535,1.56387367,159.92,159.84,6.4893]
[1723135671953,6.2531,159.92,159.84,6.4893]
[1723135672142,51.2535,159.91,159.84,6.4893]
[1723135672358,52.81811624,159.9,159.84,6.4893]
[1723135672660,1.56421624,159.9,159.84,6.4893]
[1723135672858,1.56414319,159.89,159.84,6.4893]
[1723135673073,7.81874319,159.89,159.8,20.2172]
[1723135673239,45.0,159.88,159.8,20.2172]
[1723135673754,45.0,159.89,159.8,20.2172]
[1723135673957,51.254,159.9,159.8,20.2172]
[1723135674337,1.56428513,159.89,159.8,20.2172]
[1723135675063,50.5155,159.88,159.76,20.0466]
[1723135675230,6.2575,159.81,159.76,6.1]
[1723135675434,7.82310915,159.8,159.76,6.1]
[1723135675657,7.82310915,159.8,159.73,6.0]
[1723135675658,6.2586,159.78,159.73,6.0]
[1723135675862,1.56530105,159.77,159.73,6.0]
[1723135676035,9.80890147,159.8,159.73,6.0]
[1723135676036,6.2601,159.74,159.73,6.0]
[1723135676235,6.2601,159.74,159.73,5.05632831]
[1723135676236,7.82587413,159.74,159.73,5.05632831]
[1723135677255,21.5982,159.73,159.6,50.0]
[1723135677469,6.2618,159.7,159.6,50.0]
[1723135677757,6.2629,159.67,159.6,50.0]
[1723135677965,6.2625,159.68,159.6,50.0]
[1723135678142,43.92,159.7,159.6,50.0]
[1723135678344,6.2636,159.66,159.6,50.0]
[1723135678545,6.2628,159.68,159.6,50.0]
[1723135678750,6.2621,159.69,159.6,50.0]
[1723135678951,50.1817,159.7,159.6,50.0]
[1723135679166,15.3374,159.73,159.6,50.0]
[1723135679675,6.2614,159.71,159.6,50.0]
[1723135679970,6.2609,159.72,159.6,50.0]
[1723135680180,65.78067998,159.73,159.6,50.0]
[1723135680464,1.56601609,159.72,159.6,50.0]
[1723135681254,6.2621,159.69,159.6,50.0]
[1723135681474,1.56642886,159.68,159.6,50.0]
[1723135681679,1.56633802,159.67,159.6,50.0]
[1723135681856,1.56642851,159.67,159.6,50.0]
[1723135682176,6.2614,159.71,159.6,50.0]
[1723135682352,50.44327998,159.73,159.6,50.0]
[1723135682554,1.56624995,159.7,159.6,50.0]
[1723135682754,6.263,159.67,159.6,50.0]
[1723135682964,1.56654534,159.66,159.6,50.0]
[1723135683273,43.92,159.69,159.6,50.0]
[1723135683445,6.264,159.65,159.6,50.0]
[1723135683649,6.2637,159.65,159.6,50.0]
[1723135683850,1.56663367,159.64,159.6,50.0]
[1723135684084,6.2634,159.66,159.6,50.0]
[1723135684282,1.56660389,159.66,159.6,50.0]
[1723135684789,50.1821,159.69,159.6,50.0]
[1723135684976,1.56640383,159.68,159.6,50.0]
[1723135685148,6.52327998,159.73,159.6,50.0]
[1723135685149,12.78417998,159.73,159.6,50.0]
[1723135685348,1.56607917,159.72,159.6,50.0]
[1723135685572,6.52327998,159.73,159.61,1.25279776]
[1723135685793,257.0,159.75,159.61,20.0]
[1723135686072,1.56599193,159.74,159.61,20.0]
[1723135686675,1.56599193,159.74,159.62,6.5012]
[1723135686861,7.82649193,159.74,159.62,6.5012]
[1723135687061,1.56601267,159.73,159.62,6.5012]
[1723135687757,1.56556841,159.78,159.63,20.0]
[1723135688278,1.56556841,159.78,159.64,43.92]
[1723135688448,266.80890147,159.8,159.65,20.0]
[1723135688654,1.56570642,159.79,159.63,20.0]
[1723135688853,6.2593,159.77,159.63,20.0]
[1723135689181,1.56582082,159.76,159.63,20.0]
[1723135689553,317.25640227,159.8,159.63,20.0]
[1723135689854,279.59460227,159.8,159.63,21.25245665]
[1723135690257,273.33640227,159.8,159.63,20.0]
[1723135690470,1.56531208,159.79,159.63,20.0]
[1723135690672,273.33640227,159.8,159.64,43.92]
[1723135690849,266.80890147,159.8,159.65,21.25204574]
[1723135691053,266.80890147,159.8,159.69,6.2093]
[1723135691278,50.1747,159.88,159.68,43.92]
[1723135691279,25.070649,159.93,159.76,43.92]
[1723135691476,9.80577622,159.9,159.77,21.25119159]
[1723135691854,9.80577622,159.9,159.77,20.0]
[1723135692056,2.59257101,160.01,159.8,43.92]
[1723135692253,43.92,160.02,159.81,21.25079917]
[1723135692456,9.80346814,159.95,159.81,26.45946437]
[1723135692651,6.52053198,160.0,159.81,26.45946437]
[1723135692652,6.2511,159.98,159.81,26.45946437]
[1723135692883,9.8001843,159.92,159.81,26.45946437]
[1723135693179,1.56385423,159.94,159.81,20.0]
[1723135693483,9.80101204,159.92,159.79,20.0]
[1723135694574,1.56378329,159.91,159.79,20.0]
[1723135694781,9.80101204,159.92,159.79,20.0]
[1723135695491,22.14643198,160.0,159.83,43.92]
[1723135695492,6.52053198,160.0,159.83,43.92]
[1723135695663,1.56339051,159.99,159.84,20.0]
[1723135695987,9.80053342,159.96,159.84,21.25081717]
[1723135696162,9.80053342,159.96,159.84,20.0]
[1723135697074,12.770832,160.04,159.85,15.0999]
[1723135697270,9.79841448,160.0,159.86,21.25049425]
[1723135698563,9.79841448,160.0,159.86,21.25047537]
[1723135699587,6.2511,159.98,159.86,22.58529823]
[1723135699764,6.2511,159.98,159.86,20.0]
[1723135699964,9.79841448,160.0,159.86,20.0]
[1723135700184,6.2507,159.98,159.86,20.0]
[1723135700492,16.04861448,160.0,159.86,20.0]
[1723135700787,9.79841448,160.0,159.86,20.0]
[1723135700963,6.2513,159.97,159.86,20.0]
[1723135701172,9.79841448,160.0,159.86,20.0]
[1723135701370,6.2508,159.98,159.86,21.25074956]
[1723135701563,9.79841448,160.0,159.86,20.0]
[1723135701759,6.2509,159.98,159.86,20.0]
[1723135701983,6.2514,159.97,159.86,20.0]
[1723135702684,6.2515,159.96,159.85,15.0999]
[1723135703179,6.2515,159.96,159.8,50.2143]
[1723135703180,1.56371392,159.95,159.81,2.47477676]
[1723135703381,78.3786,159.97,159.8,6.2943]
[1723135703692,6.2535,159.91,159.8,6.2943]
[1723135703892,78.3786,159.97,159.8,6.2943]
[1723135704100,6.2532,159.92,159.8,6.2943]
[1723135704264,6.2528,159.93,159.8,6.2943]
[1723135704886,43.92,159.93,159.8,6.2943]
[1723135705107,1.5641221,159.92,159.8,6.2943]
[1723135705271,43.92,159.93,159.8,6.2943]
[1723135705474,6.2535,159.91,159.8,6.2943]
[1723135705668,7.81767512,159.91,159.8,6.2943]
[1723135706011,43.92,159.93,159.8,6.2943]
[1723135706475,18.83,159.96,159.81,1.25129877]
[1723135706674,6.2512,159.97,159.81,21.25129877]
[1723135707189,257.0,159.98,159.81,21.25129877]
[1723135707382,6.2512,159.97,159.81,21.25129877]
[1723135707889,282.3395533,159.98,159.81,21.25129877]
[1723135708196,282.3395533,159.98,159.81,20.0]
[1723135708197,6.2529,159.93,159.81,20.0]
[1723135708494,43.92,159.96,159.81,20.0]
[1723135708672,7.81575363,159.95,159.81,20.0]
[1723135708983,263.5095533,159.98,159.81,21.25103593]
[1723135709167,6.2515,159.96,159.82,15.795]
[1723135709367,6.2515,159.96,159.83,1.25089686]
[1723135709884,6.2511,159.97,159.82,15.795]
[1723135710094,263.5095533,159.98,159.83,21.25089829]
[1723135710267,257.0,159.98,159.83,21.25089829]
[1723135710466,1.5635351,159.97,159.83,20.0]
[1723135710884,6.2522,159.95,159.82,15.795]
[1723135711067,7.81605186,159.94,159.82,15.795]
[1723135711692,45.0,159.93,159.82,15.795]
[1723135711900,51.2527,159.93,159.82,15.795]
[1723135712191,15.6265,159.99,159.94,6.252]
[1723135712192,6.2504,159.99,159.94,6.252]
[1723135712369,16.04841448,160.0,159.95,6.2516]
[1723135713114,6.2504,159.99,159.95,6.2516]
[1723135713390,7.81396519,159.98,159.94,6.2522]
[1723135713573,6.2508,159.98,159.83,52.7497]
[1723135713775,6.2504,159.99,159.94,6.2523]
[1723135713974,1.56322816,159.98,159.94,6.2523]
[1723135714176,7.81402816,159.98,159.94,6.2523]
[1723135714604,1.56325655,159.97,159.83,8.8297]
[1723135715175,9.79841448,160.0,159.99,6.2503]
[1723135715584,6.2476,160.06,160.01,6.2492]
[1723135715796,46.48900704,160.08,160.0,6.2496]
[1723135715797,9.79540996,160.04,160.0,6.2496]
[1723135716005,9.79540996,160.04,159.93,6.1361]
[1723135716006,9.79540996,160.04,160.02,6.2491]
[1723135716177,9.79540996,160.04,159.94,1.24998857]
[1723135716375,9.79540996,160.04,160.0,6.2499]